bitfinex-derivatives/quotes_BTCF0:USTF0_20241125
["timestamp","ask_amount","ask_price","bid_price","bid_amount"]
[1732514588195,0.0004,98142.0,98141.0,0.05098328]
[1732514588395,0.0004,98142.0,98141.0,0.29433925]
[1732514588797,0.0004,98142.0,98141.0,0.05098328]
[1732514588997,0.0004,98142.0,98141.0,0.29433925]
[1732514589302,0.0004,98142.0,98141.0,0.05098328]
[1732514589507,0.0004,98142.0,98141.0,0.29433925]
[1732514589693,0.0004,98142.0,98141.0,0.05098328]
[1732514590105,1.5,98157.0,98153.0,0.050882]
[1732514590409,0.050881,98156.0,98155.0,0.05088]
[1732514592897,0.09142107,98159.0,98154.0,0.0322]
[1732514593094,0.05088,98156.0,98154.0,0.0322]
[1732514593303,0.05088,98156.0,98155.0,0.0302]
[1732514593911,0.09142107,98156.0,98155.0,0.0302]
[1732514594104,1.50052001,98161.0,98155.0,0.0302]
[1732514594412,1.5,98161.0,98160.0,0.0004]
[1732514594709,0.09143487,98164.0,98162.0,0.050877]
[1732514594910,0.050875,98167.0,98163.0,0.3608]
[1732514595207,0.050875,98167.0,98166.0,0.0004]
[1732514595613,0.09141831,98167.0,98166.0,0.051275]
[1732514595805,0.09141831,98169.0,98168.0,0.050874]
[1732514596111,0.09141831,98172.0,98168.0,0.0004]
[1732514596305,0.09141831,98173.0,98168.0,0.0004]
[1732514596709,0.09141831,98173.0,98172.0,0.051272]
[1732514596905,0.09141831,98174.0,98172.0,0.051272]
[1732514597414,0.09141831,98173.0,98172.0,0.051272]
[1732514597804,0.09141831,98174.0,98172.0,0.411672]
[1732514598105,0.09141831,98175.0,98174.0,0.050871]
[1732514598305,0.09141831,98176.0,98174.0,0.081971]
[1732514598513,0.09141831,98178.0,98174.0,0.082371]
[1732514598806,0.09141831,98179.0,98177.0,0.0004]
[1732514598999,0.09141831,98178.0,98177.0,0.0004]
[1732514599204,0.09141831,98178.0,98174.0,0.081971]
[1732514599404,0.00013022,98187.0,98174.0,0.081971]
[1732514599405,0.14228631,98179.0,98174.0,0.081971]
[1732514599605,0.09141831,98179.0,98174.0,0.081971]
[1732514599805,0.05087,98176.0,98174.0,0.0311]
[1732514601210,0.05087,98176.0,98174.0,0.081971]
[1732514601399,0.09141831,98181.0,98174.0,0.0311]
[1732514601600,0.050868,98181.0,98179.0,0.050868]
[1732514601909,0.050868,98181.0,98180.0,0.0004]
[1732514607913,0.050868,98181.0,98180.0,0.3612]
[1732514610410,0.07740777,98181.0,98180.0,0.3612]
[1732514613608,0.43820777,98181.0,98180.0,0.0004]
[1732514614112,1.93820777,98181.0,98180.0,0.0004]
[1732514617811,0.07740777,98181.0,98180.0,0.0004]
[1732514618014,0.43820777,98181.0,98180.0,0.0004]
[1732514620123,0.411668,98181.0,98180.0,0.0004]
[1732514620420,0.56404247,98181.0,98180.0,0.0004]
[1732514621321,0.411668,98181.0,98180.0,0.0004]
[1732514623218,0.411668,98181.0,98180.0,0.051268]
[1732514624325,0.411668,98181.0,98180.0,0.0004]
[1732514624519,0.050868,98181.0,98180.0,0.0004]
[1732514629125,0.10034551,98181.0,98180.0,0.0004]
[1732514630925,0.20337826,98181.0,98180.0,0.051268]
[1732514631223,0.20337826,98181.0,98180.0,0.0004]
[1732514631224,0.050868,98181.0,98180.0,0.0004]
[1732514631415,0.20337826,98181.0,98180.0,0.0004]
[1732514631816,0.10034505,98181.0,98180.0,0.0004]
[1732514632022,0.84943676,98181.0,98163.0,0.24342477]
[1732514632222,0.3608,98165.0,98159.0,0.27612477]
[1732514632424,0.15251637,98161.0,98150.0,0.032]
[1732514632634,0.050883,98150.0,98149.0,0.36144]
[1732514632928,0.15291637,98150.0,98143.0,0.0327]
[1732514633128,0.3608,98147.0,98137.0,0.27592477]
[1732514633422,0.3608,98147.0,98137.0,0.0325]
[1732514633423,0.050888,98142.0,98137.0,0.0325]
[1732514634031,0.051288,98142.0,98137.0,0.0325]
[1732514634224,0.051288,98142.0,98132.0,0.24342477]
[1732514634225,0.17320249,98142.0,98132.0,0.24342477]
[1732514634526,0.17320249,98142.0,98131.0,0.0627]
[1732514634527,0.17312469,98142.0,98131.0,0.0627]
[1732514634725,0.051288,98142.0,98141.0,0.36089528]
[1732514635227,0.14266015,98142.0,98141.0,0.36089528]
[1732514635431,0.051288,98142.0,98141.0,0.36089528]
[1732514637622,0.0004,98142.0,98141.0,0.41178328]
[1732514638424,0.0004,98142.0,98141.0,0.36089528]
[1732514644120,0.0004,98142.0,98141.0,0.39129528]
[1732514644522,0.0004,98142.0,98141.0,0.53369528]
[1732514646636,0.0004,98142.0,98141.0,0.50329528]
[1732514648430,0.0004,98142.0,98141.0,0.36089528]
[1732514648634,0.0004,98142.0,98141.0,9.528e-05]
[1732514649140,0.0004,98142.0,98141.0,0.05098328]
[1732514649540,0.0004,98142.0,98141.0,9.528e-05]
[1732514650235,0.0325,98142.0,98141.0,9.528e-05]
[1732514652835,1.5325,98142.0,98141.0,9.528e-05]
[1732514653245,1.62373141,98142.0,98141.0,9.528e-05]
[1732514653438,1.5325,98142.0,98141.0,9.528e-05]
[1732514655738,1.62374892,98142.0,98141.0,9.528e-05]
[1732514656338,1.5325,98142.0,98141.0,9.528e-05]
[1732514659341,1.6747,98142.0,98141.0,9.528e-05]
[1732514660361,2.0355,98142.0,98141.0,9.528e-05]
[1732514660862,2.15733669,98142.0,98141.0,9.528e-05]
[1732514661157,2.0355,98142.0,98141.0,9.528e-05]
[1732514661353,2.34118,98142.0,98124.0,0.24342477]
[1732514661554,0.3608,98125.0,98122.0,0.24342477]
[1732514661757,0.050897,98124.0,98122.0,0.24342477]
[1732514661954,0.0004,98123.0,98117.0,0.24342477]
[1732514662150,0.0004,98123.0,98118.0,0.24342477]
[1732514662350,0.050897,98124.0,98120.0,0.24342477]
[1732514662550,0.050898,98121.0,98120.0,0.24342477]
[1732514662759,0.050898,98121.0,98119.0,0.24351623]
[1732514663258,0.050898,98121.0,98119.0,9.146e-05]
[1732514667158,0.09155737,98120.0,98119.0,9.146e-05]
[1732514667364,0.00012503,98120.0,98119.0,9.146e-05]
[1732514672464,0.050905,98108.0,98103.0,0.27442477]
[1732514672768,0.050905,98108.0,98107.0,0.081806]
[1732514672769,0.10994606,98108.0,98107.0,0.081806]
[1732514673067,0.10994606,98108.0,98107.0,0.0309]
[1732514673462,0.10994606,98108.0,98107.0,0.03102416]
[1732514673772,0.11631207,98108.0,98107.0,0.03102416]
[1732514674463,0.11631207,98108.0,98106.0,0.03029142]
[1732514674653,0.05864106,98107.0,98106.0,0.03029142]
[1732514674862,0.05904106,98107.0,98106.0,0.03029142]
[1732514675068,0.06540707,98107.0,98106.0,0.03029142]
[1732514675570,0.06540707,98107.0,98106.0,8.213e-05]
[1732514675959,0.0537815,98107.0,98106.0,8.213e-05]
[1732514676164,0.06499202,98107.0,98106.0,8.213e-05]
[1732514676961,0.04028029,98107.0,98106.0,8.213e-05]
[1732514677170,0.05863733,98107.0,98106.0,8.213e-05]
[1732514677369,0.06500392,98107.0,98106.0,8.213e-05]
[1732514680566,0.06503203,98107.0,98106.0,8.213e-05]
[1732514682678,0.06503203,98107.0,98106.0,0.2435069]
[1732514683471,0.06503203,98107.0,98106.0,8.213e-05]
[1732514684577,0.11593803,98107.0,98106.0,8.213e-05]
[1732514685074,0.11593803,98107.0,98106.0,0.24363359]
[1732514685470,0.11593803,98107.0,98106.0,8.213e-05]
[1732514688674,0.11593803,98107.0,98104.0,0.31504377]
[1732514688675,0.050907,98105.0,98104.0,0.31504377]
[1732514688871,0.11553903,98105.0,98104.0,0.31504377]
[1732514689071,0.11593903,98105.0,98104.0,0.31504377]
[1732514689272,0.11593903,98105.0,98104.0,0.55877417]
[1732514689681,0.11593903,98105.0,98104.0,0.55885164]
[1732514690178,0.11593903,98105.0,98104.0,0.31512124]
[1732514690377,0.09810215,98105.0,98104.0,0.31512124]
[1732514690577,0.11565944,98105.0,98104.0,0.31512124]
[1732514690876,0.11565944,98105.0,98104.0,0.36087747]
[1732514690877,0.20702292,98105.0,98104.0,0.36087747]
[1732514691277,0.11565944,98105.0,98104.0,0.36087747]
[1732514693983,0.23756922,98105.0,98104.0,0.36087747]
[1732514694183,0.11565944,98105.0,98104.0,7.747e-05]
[1732514694681,0.05091,98099.0,98098.0,0.24392487]
[1732514694873,0.05091,98099.0,98097.0,0.24392487]
[1732514694874,0.05091,98098.0,98097.0,0.24392487]
[1732514695074,0.11526244,98098.0,98097.0,0.24392487]
[1732514695279,0.11566244,98098.0,98097.0,0.24392487]
[1732514695479,0.06475244,98098.0,98096.0,0.24392487]
[1732514695682,0.10889699,98097.0,98096.0,0.24392487]
[1732514695979,0.11566344,98097.0,98096.0,0.24392487]
[1732514696482,0.050911,98096.0,98095.0,0.00011986]
[1732514696676,0.11526344,98096.0,98095.0,0.00011986]
[1732514696984,0.11566344,98096.0,98095.0,0.00011986]
[1732514697487,0.11566344,98096.0,98095.0,0.05103186]
[1732514697488,0.06475244,98096.0,98095.0,0.05103186]
[1732514697683,0.06475244,98096.0,98095.0,0.36337699]
[1732514698289,0.06422628,98096.0,98095.0,0.36337699]
[1732514700589,0.06422628,98096.0,98095.0,0.36270255]
[1732514701191,0.06436153,98096.0,98095.0,0.36270255]
[1732514702089,0.07964998,98096.0,98095.0,0.36270255]
[1732514702480,0.06436153,98096.0,98095.0,0.36270255]
[1732514704589,0.06436153,98096.0,98095.0,0.36205016]
[1732514705391,0.0644276,98096.0,98095.0,0.36205016]
[1732514706790,0.0644276,98096.0,98095.0,0.36181865]
[1732514708602,0.0644276,98096.0,98095.0,0.66765865]
[1732514709592,0.0644276,98096.0,98095.0,0.99753218]
[1732514710393,0.0915576,98115.0,98113.0,0.050903]
[1732514710596,0.12210639,98118.0,98117.0,0.0509]
[1732514710790,0.12210639,98118.0,98117.0,0.02798316]
[1732514711303,0.12210639,98119.0,98117.0,0.02798316]
[1732514711495,0.09153365,98118.0,98114.0,0.0319]
[1732514711692,0.09165868,98120.0,98117.0,0.0509]
[1732514711898,0.00012503,98120.0,98119.0,0.355672]
[1732514712289,0.00012503,98120.0,98119.0,0.32554005]
[1732514712505,0.00012503,98120.0,98116.0,0.14192]
[1732514712800,0.00012503,98120.0,98119.0,0.050899]
[1732514713000,0.00012503,98120.0,98119.0,0.32547504]
[1732514713604,0.00012503,98120.0,98119.0,0.050899]
[1732514714005,0.00012503,98120.0,98119.0,0.35530283]
[1732514714702,0.00012503,98120.0,98119.0,0.050899]
[1732514715003,0.00012503,98120.0,98119.0,0.192819]
[1732514719014,0.01598573,98120.0,98119.0,0.192819]
[1732514719409,0.01598573,98120.0,98119.0,0.43605532]
[1732514719815,0.00012503,98120.0,98119.0,0.192819]
[1732514720014,0.00012503,98120.0,98119.0,0.223119]
[1732514720411,0.01807939,98120.0,98119.0,0.223119]
[1732514720618,0.00012503,98120.0,98119.0,0.223119]
[1732514721807,0.01815635,98120.0,98119.0,0.528879]
[1732514722116,0.01815635,98120.0,98119.0,0.80411406]
[1732514722420,0.01057727,98120.0,98119.0,0.80411406]
[1732514722610,0.01045224,98120.0,98119.0,0.75321506]
[1732514722926,0.02170395,98120.0,98119.0,0.80411406]
[1732514723111,0.02170395,98120.0,98119.0,1.05321506]
[1732514723112,0.01045224,98120.0,98119.0,1.05321506]
[1732514723307,0.01045224,98122.0,98121.0,0.050898]
[1732514723507,0.01036711,98122.0,98121.0,0.75401306]
[1732514723717,0.00636458,98138.0,98121.0,0.75401306]
[1732514723718,0.01036711,98126.0,98121.0,1.35977306]
[1732514723917,0.01036711,98125.0,98123.0,0.30353194]
[1732514724115,0.01585437,98134.0,98132.0,0.050893]
[1732514724323,0.01585437,98135.0,98133.0,0.50268]
[1732514724519,0.01673119,98148.0,98134.0,0.14188]
[1732514724818,0.01583881,98136.0,98135.0,0.050891]
[1732514725025,0.02616222,98136.0,98135.0,0.050891]
[1732514725219,0.01032341,98136.0,98135.0,0.050891]
[1732514725521,0.02799532,98136.0,98135.0,0.050891]
[1732514726020,0.02799532,98136.0,98135.0,0.2329807]
[1732514726324,0.02799532,98136.0,98135.0,0.050891]
[1732514728516,0.02782004,98136.0,98135.0,0.050891]
[1732514729616,0.01032341,98136.0,98135.0,0.050891]
[1732514729821,0.04364118,98136.0,98135.0,0.050891]
[1732514730227,0.02780421,98136.0,98135.0,0.050891]
[1732514732222,0.02780421,98136.0,98135.0,0.411691]
[1732514732420,0.050887,98144.0,98138.0,0.05089]
[1732514732723,0.01583786,98142.0,98141.0,0.18209654]
[1732514733029,0.04258315,98142.0,98141.0,0.18209654]
[1732514733524,0.04422264,98142.0,98141.0,0.18209654]
[1732514733828,0.06006213,98142.0,98140.0,0.050888]
[1732514734034,0.04422264,98141.0,98140.0,0.050888]
[1732514734322,0.04462264,98141.0,98140.0,0.050888]
[1732514735122,0.07142372,98141.0,98140.0,0.050888]
[1732514735621,0.07142372,98141.0,98140.0,0.23299897]
[1732514735819,0.05558423,98141.0,98140.0,0.23299897]
[1732514736028,0.05558423,98141.0,98140.0,0.59379897]
[1732514736230,0.07142372,98141.0,98140.0,0.59379897]
[1732514736527,0.07142372,98141.0,98140.0,0.411688]
[1732514737016,0.05558423,98141.0,98140.0,0.411688]
[1732514740219,0.05555103,98141.0,98140.0,0.411688]
[1732514740930,0.07141819,98141.0,98140.0,0.411688]
[1732514741122,0.05555103,98141.0,98140.0,0.411688]
[1732514742234,0.05555103,98141.0,98140.0,0.65493335]
[1732514742423,0.05555103,98141.0,98140.0,0.411688]
[1732514742928,0.05555103,98141.0,98140.0,0.553328]
[1732514743727,0.07134036,98141.0,98140.0,0.553328]
[1732514744319,0.02711209,98141.0,98140.0,0.553328]
[1732514744724,0.05550936,98141.0,98140.0,0.553328]
[1732514745722,0.05550936,98141.0,98140.0,0.411688]
[1732514745919,0.05550936,98141.0,98140.0,0.553328]
[1732514747035,0.05550936,98141.0,98140.0,0.85685994]
[1732514747431,0.05550936,98141.0,98140.0,0.553328]
[1732514747736,0.03907115,98141.0,98140.0,0.83516635]
[1732514747929,0.03888389,98141.0,98140.0,1.13948353]
[1732514748333,0.03888389,98141.0,98140.0,0.83516635]
[1732514750432,0.03888389,98141.0,98140.0,1.20089395]
[1732514750627,0.03888389,98141.0,98140.0,0.83516635]
[1732514751424,0.03681474,98141.0,98140.0,1.20089395]
[1732514751641,0.03681474,98141.0,98140.0,0.83516635]
[1732514752138,0.0365482,98141.0,98140.0,0.83516635]
[1732514752734,0.03658217,98141.0,98140.0,0.83516635]
[1732514753033,0.03658217,98141.0,98140.0,1.20065624]
[1732514753832,0.03658217,98141.0,98140.0,0.91881789]
[1732514754139,0.03658217,98141.0,98140.0,1.20555993]
[1732514755040,0.03658217,98141.0,98140.0,0.84007004]
[1732514755831,0.03638786,98141.0,98140.0,0.84007004]
[1732514756539,0.03638786,98141.0,98140.0,0.87107004]
[1732514758828,0.03638786,98141.0,98140.0,0.87076451]
[1732514759239,0.01020929,98141.0,98140.0,0.87076451]
[1732514759438,0.02017993,98141.0,98140.0,0.87076451]
[1732514759939,0.0004,98141.0,98140.0,0.87076451]
[1732514760340,0.01037063,98141.0,98140.0,0.87076451]
[1732514761542,0.01037063,98141.0,98140.0,0.89112572]
[1732514762146,0.01036741,98141.0,98140.0,0.83976451]
[1732514762346,0.01036741,98141.0,98140.0,0.84118573]
[1732514762542,0.01036741,98141.0,98140.0,0.69954573]
[1732514762736,0.01036741,98141.0,98140.0,0.411688]
[1732514763431,0.04036741,98141.0,98140.0,0.411688]
[1732514764047,0.04036741,98141.0,98140.0,0.71611669]
[1732514764544,0.04036741,98141.0,98140.0,0.69979216]
[1732514765744,0.04025226,98141.0,98140.0,0.69979216]
[1732514766941,0.04025226,98141.0,98140.0,1.09663122]
[1732514767140,0.04025226,98141.0,98140.0,1.09662157]
[1732514767439,0.01025226,98141.0,98140.0,0.73128251]
[1732514767746,0.0004,98141.0,98140.0,1.07486959]
[1732514768045,0.01026265,98141.0,98140.0,1.07486959]
[1732514769343,0.09153365,98162.0,98149.0,0.050884]
[1732514769538,0.09153365,98165.0,98163.0,0.050877]
[1732514769734,0.48290639,98171.0,98163.0,0.14164]
[1732514769934,0.09152123,98170.0,98168.0,0.050874]
[1732514770143,0.12210639,98174.0,98169.0,0.66512389]
[1732514770144,0.09152123,98174.0,98169.0,0.66512389]
[1732514770340,0.0617,98177.0,98176.0,0.05087]
[1732514770540,0.0304,98177.0,98176.0,0.05087]
[1732514770738,0.04013052,98177.0,98176.0,0.05087]
[1732514771841,0.0304,98177.0,98176.0,0.05087]
[1732514773741,0.04011116,98177.0,98176.0,0.05087]
[1732514774541,0.04011116,98177.0,98176.0,0.07694898]
[1732514775341,0.04011116,98177.0,98176.0,0.31953623]
[1732514775535,0.04011116,98177.0,98176.0,0.07694898]
[1732514776244,0.00971116,98177.0,98176.0,0.31953324]
[1732514776448,0.00971116,98177.0,98176.0,0.07694898]
[1732514777342,0.00971116,98177.0,98176.0,0.31942868]
[1732514779439,0.00971116,98177.0,98176.0,0.25876241]
[1732514781149,8.905e-05,98180.0,98179.0,0.050868]
[1732514781345,0.0197614,98180.0,98179.0,0.050868]
[1732514781551,0.0197614,98180.0,98179.0,0.051668]
[1732514783749,0.01002046,98180.0,98179.0,0.051668]
[1732514783936,8.905e-05,98180.0,98179.0,0.051668]
[1732514784940,0.00984286,98180.0,98179.0,0.051668]
[1732514785149,0.01982634,98180.0,98179.0,0.051668]
[1732514785849,0.01982634,98180.0,98179.0,0.412468]
[1732514786956,0.01007253,98180.0,98179.0,0.412468]
[1732514788846,0.00967662,98180.0,98179.0,0.412468]
[1732514789551,0.00967631,98180.0,98179.0,0.412468]
[1732514790056,8.905e-05,98180.0,98179.0,0.412468]
[1732514795551,8.905e-05,98180.0,98179.0,0.773268]
[1732514796059,0.00964093,98180.0,98179.0,0.773268]
[1732514796459,0.00964093,98180.0,98179.0,0.914588]
[1732514797152,8.905e-05,98180.0,98179.0,0.914588]
[1732514798655,8.905e-05,98180.0,98179.0,1.21891189]
[1732514799452,8.905e-05,98180.0,98179.0,1.2259723]
[1732514800564,8.905e-05,98180.0,98179.0,1.59058536]
[1732514800752,8.905e-05,98180.0,98179.0,1.2259723]
[1732514800955,0.09145785,98195.0,98186.0,0.050865]
[1732514801156,0.1,98200.0,98194.0,0.3608]
[1732514801157,0.09145785,98199.0,98194.0,0.3608]
[1732514801452,0.1,98200.0,98198.0,0.051658]
[1732514801761,0.1,98200.0,98199.0,0.0008]
[1732514801970,0.1,98200.0,98199.0,0.00091925]
[1732514802758,0.1,98200.0,98199.0,0.30493958]
[1732514802954,0.1,98200.0,98199.0,0.29327158]
[1732514803154,0.1,98200.0,98199.0,0.59732413]
[1732514803354,0.1,98200.0,98199.0,0.00091925]
[1732514803550,0.1,98200.0,98199.0,0.3049718]
[1732514803860,0.1,98200.0,98199.0,0.4460518]
[1732514804263,0.1,98200.0,98199.0,0.14199925]
[1732514804557,0.1,98200.0,98199.0,0.4460518]
[1732514805059,0.1,98200.0,98199.0,0.44601518]
[1732514805254,0.1,98200.0,98199.0,0.43470683]
[1732514806366,0.1,98200.0,98199.0,0.43328522]
[1732514807460,0.1,98200.0,98199.0,0.44588908]
[1732514808765,0.1,98200.0,98199.0,0.73606846]
[1732514808954,0.1,98200.0,98199.0,0.43221412]
[1732514809472,0.1,98200.0,98199.0,0.73605615]
[1732514809668,0.1,98200.0,98199.0,0.14199925]
[1732514814574,0.1,98200.0,98199.0,0.19285725]
[1732514817370,0.1,98200.0,98199.0,0.05177725]
[1732514817572,0.1,98200.0,98199.0,0.35561928]
[1732514817762,0.1,98200.0,98199.0,0.05177725]
[1732514819270,0.1,98200.0,98199.0,0.35561928]
[1732514821066,0.1,98200.0,98199.0,0.71641928]
[1732514822277,0.1,98200.0,98199.0,1.00567163]
[1732514822469,0.1,98200.0,98199.0,1.00586511]
[1732514822767,0.1,98200.0,98199.0,0.7018296]
[1732514824972,0.1,98200.0,98199.0,0.8428696]
[1732514825566,0.1,98200.0,98199.0,0.84374598]
[1732514827068,0.1,98200.0,98199.0,0.84328999]
[1732514829477,0.1,98200.0,98199.0,0.84485589]
[1732514832578,0.1,98200.0,98199.0,1.27242795]
[1732514832767,0.1,98200.0,98199.0,0.90765589]
[1732514834177,0.1,98200.0,98199.0,0.61641725]
[1732514834370,0.1,98200.0,98199.0,1.25846214]
[1732514835472,0.1,98200.0,98199.0,0.90932606]
[1732514836768,0.1,98200.0,98199.0,1.26274973]
[1732514838183,0.1,98200.0,98199.0,0.90932606]
[1732514838378,0.00012503,98213.0,98212.0,0.050851]
[1732514838684,0.00012503,98213.0,98212.0,0.70535981]
[1732514838982,0.00012503,98213.0,98212.0,0.84611981]
[1732514839171,0.00012503,98213.0,98212.0,0.70557336]
[1732514839371,0.00012503,98213.0,98212.0,0.84633336]
[1732514843681,0.00012503,98213.0,98212.0,1.21137857]
[1732514844081,0.00012503,98213.0,98212.0,1.21093426]
[1732514844681,0.00012503,98213.0,98212.0,0.84588905]
[1732514845187,0.00012503,98213.0,98212.0,1.21044018]
[1732514845588,0.00012503,98213.0,98212.0,0.84588905]
[1732514848489,0.0314,98234.0,98231.0,0.050841]
[1732514848490,0.09142383,98232.0,98231.0,0.050841]
[1732514848685,0.09142383,98232.0,98231.0,0.552361]
[1732514848888,0.09142383,98232.0,98231.0,0.553161]
[1732514849387,0.09142383,98233.0,98231.0,0.553161]
[1732514849895,0.09142383,98233.0,98232.0,0.0008]
[1732514851287,0.0314,98234.0,98233.0,0.05084]
[1732514851288,0.12282383,98234.0,98233.0,0.05084]
[1732514851788,0.12282383,98234.0,98233.0,0.23381009]
[1732514851988,0.12282383,98234.0,98233.0,0.18297009]
[1732514852183,0.0314,98234.0,98233.0,0.0008]
[1732514853396,0.45890639,98234.0,98223.0,0.50152]
[1732514853597,0.050851,98212.0,98211.0,0.24293961]
[1732514853889,0.30548,98211.0,98189.0,0.3608]
[1732514854196,0.050861,98194.0,98189.0,0.411663]
[1732514854385,0.12171554,98190.0,98189.0,0.411663]
[1732514854684,0.12171554,98191.0,98189.0,0.36093153]
[1732514854890,0.050863,98190.0,98189.0,0.36093153]
[1732514855188,0.14210402,98190.0,98189.0,0.36093153]
[1732514855392,0.050863,98190.0,98189.0,0.36093153]
[1732514855691,0.051263,98190.0,98189.0,0.36093153]
[1732514859994,0.0004,98190.0,98189.0,0.36093153]
[1732514861296,0.0004,98190.0,98189.0,0.00013153]
[1732514862992,0.0004,98190.0,98189.0,0.36093153]
[1732514863191,0.0004,98190.0,98189.0,0.00013153]
[1732514864484,0.0004,98190.0,98189.0,0.36093153]
[1732514869899,0.0309,98190.0,98189.0,0.36093153]
[1732514870900,0.0004,98190.0,98189.0,0.36093153]
[1732514873399,0.0004,98190.0,98189.0,0.39223153]
[1732514877402,0.0004,98190.0,98189.0,0.63517114]
[1732514877799,0.0004,98190.0,98189.0,0.39223153]
[1732514881199,0.02660575,98215.0,98189.0,0.67922405]
[1732514881408,1.55136801,98219.0,98214.0,0.3608]
[1732514881605,0.00052001,98219.0,98214.0,0.3608]
[1732514881799,0.051245,98224.0,98214.0,0.3608]
[1732514881800,0.0004,98224.0,98216.0,0.3608]
[1732514882002,0.0004,98224.0,98222.0,0.050846]
[1732514882201,0.0004,98224.0,98223.0,0.0004]
[1732514883206,0.0004,98224.0,98223.0,0.3612]
[1732514889221,0.0004,98224.0,98223.0,0.50164]
[1732514890119,0.0004,98224.0,98223.0,0.50481889]
[1732514890315,0.0004,98224.0,98223.0,0.50481882]
[1732514891007,0.0004,98224.0,98223.0,0.50164]
[1732514891213,0.0004,98224.0,98223.0,0.50481883]
[1732514892829,0.0004,98224.0,98223.0,0.50164]
[1732514895116,0.0004,98224.0,98223.0,0.50136]
[1732514897423,0.0004,98224.0,98223.0,0.3612]
[1732514897628,0.0004,98224.0,98223.0,0.50136]
[1732514902430,0.0004,98224.0,98223.0,0.3612]
[1732514902735,0.0004,98224.0,98223.0,0.50136]
[1732514904135,0.0004,98224.0,98223.0,0.50453909]
[1732514904331,0.0004,98224.0,98223.0,0.36437909]
[1732514904639,0.30584,98224.0,98210.0,0.24279547]
[1732514904837,0.09124251,98222.0,98217.0,0.3608]
[1732514905035,0.0636,98223.0,98221.0,0.050847]
[1732514905332,0.0636,98223.0,98215.0,0.050849]
[1732514905333,0.050847,98221.0,98215.0,0.050849]
[1732514905639,0.050847,98221.0,98214.0,0.36144]
[1732514905842,0.050847,98221.0,98219.0,0.050848]
[1732514906136,0.15484251,98223.0,98222.0,0.0004]
[1732514906436,0.0636,98223.0,98222.0,0.0004]
[1732514907738,0.36904,98223.0,98222.0,0.0004]
[1732514907938,0.49311411,98223.0,98222.0,0.0004]
[1732514908134,0.40184,98223.0,98222.0,0.0004]
[1732514908438,0.49311411,98223.0,98222.0,0.0004]
[1732514909230,0.40184,98223.0,98222.0,0.0004]
[1732514909542,0.452686,98223.0,98222.0,0.0004]
[1732514909838,0.452686,98223.0,98222.0,0.051246]
[1732514910235,0.54399205,98223.0,98222.0,0.051246]
[1732514910641,0.452686,98223.0,98222.0,0.051246]
[1732514911032,0.40184,98223.0,98222.0,0.051246]
[1732514911337,0.0964,98223.0,98222.0,0.051246]
[1732514911539,0.40184,98223.0,98222.0,0.051246]
[1732514911743,0.36854,98223.0,98222.0,0.051246]
[1732514912129,0.0631,98223.0,98222.0,0.051246]
[1732514912325,0.15440433,98223.0,98222.0,0.051246]
[1732514912529,0.0004,98224.0,98223.0,0.050846]
[1732514912926,0.0004,98224.0,98223.0,0.34769441]
[1732514913139,0.0323,98245.0,98244.0,0.050835]
[1732514914032,0.0323,98245.0,98244.0,0.051235]
[1732514915634,0.12360433,98245.0,98244.0,0.051235]
[1732514915829,0.12360433,98245.0,98244.0,0.0004]
[1732514916030,0.33766,98245.0,98244.0,0.0004]
[1732514916234,0.47786,98245.0,98244.0,0.0004]
[1732514917032,0.3608,98248.0,98244.0,0.0004]
[1732514917033,0.3608,98248.0,98247.0,0.050833]
[1732514917445,0.66616,98248.0,98247.0,0.051233]
[1732514917641,0.3608,98248.0,98247.0,0.051233]
[1732514921543,0.45208111,98248.0,98247.0,0.051233]
[1732514922045,0.0309,98249.0,98248.0,0.050833]
[1732514922544,0.0309,98249.0,98248.0,0.051233]
[1732514923640,9.818e-05,98250.0,98249.0,0.050832]
[1732514924743,9.818e-05,98250.0,98249.0,0.051232]
[1732514929947,0.05093018,98250.0,98249.0,0.051232]
[1732514932437,9.818e-05,98250.0,98249.0,0.051232]
[1732514934245,9.818e-05,98250.0,98249.0,0.05135518]
[1732514934442,0.09131048,98250.0,98249.0,0.05135518]
[1732514934638,9.818e-05,98250.0,98249.0,0.05135518]
[1732514935146,0.0912123,98263.0,98249.0,0.05135518]
[1732514935338,0.17255387,98272.0,98249.0,0.05135518]
[1732514935339,0.0912123,98267.0,98266.0,0.050823]
[1732514935535,0.0912123,98268.0,98267.0,0.050823]
[1732514935734,0.0912123,98269.0,98267.0,0.050823]
[1732514935946,0.0912123,98268.0,98267.0,0.051223]
[1732514936138,0.1420333,98272.0,98268.0,0.051222]
[1732514936344,0.0912123,98271.0,98268.0,0.051222]
[1732514936542,0.0912123,98271.0,98268.0,0.050822]
[1732514936743,0.0912123,98271.0,98270.0,0.050821]
[1732514936953,0.02531295,98274.0,98272.0,0.05082]
[1732514936954,0.11652525,98274.0,98272.0,0.05082]
[1732514937142,0.09132979,98275.0,98264.0,0.0322]
[1732514937338,0.09132979,98275.0,98272.0,0.05082]
[1732514937549,0.09132979,98275.0,98264.0,0.083024]
[1732514937550,0.0004,98265.0,98264.0,0.083024]
[1732514937953,0.0004,98265.0,98264.0,0.10935943]
[1732514940450,0.0004,98265.0,98264.0,0.35235545]
[1732514940651,0.051224,98265.0,98264.0,0.49223545]
[1732514940953,0.0004,98265.0,98264.0,0.24923943]
[1732514941853,0.0004,98265.0,98264.0,0.49228069]
[1732514942241,0.0004,98265.0,98264.0,0.24923943]
[1732514942452,0.0004,98265.0,98264.0,0.492346]
[1732514943651,0.0912123,98274.0,98264.0,0.492346]
[1732514943850,0.00011749,98275.0,98273.0,0.41162]
[1732514944049,0.00011749,98275.0,98274.0,0.13988]
[1732514945651,0.48253287,98299.0,98274.0,0.13988]
[1732514945652,0.09122312,98295.0,98286.0,0.050813]
[1732514945850,0.09122312,98295.0,98287.0,0.50068]
[1732514946360,0.14203112,98296.0,98287.0,0.50068]
[1732514946553,0.050808,98295.0,98287.0,0.50148]
[1732514947150,0.050808,98295.0,98287.0,0.3616]
[1732514947349,0.050811,98291.0,98287.0,0.50148]
[1732514948259,0.050912,98288.0,98287.0,0.3616]
[1732514950259,0.050912,98288.0,98287.0,0.0008]
[1732514950462,0.050912,98288.0,98287.0,0.3616]
[1732514953867,0.0001,98288.0,98287.0,0.3616]
[1732514961471,0.0001,98288.0,98287.0,0.14044]
[1732514965468,0.0911051,98296.0,98287.0,0.4458013]
[1732514965667,0.10009824,98300.0,98295.0,0.411608]